bitfinex/quotes_ETHUSD_20241104
["timestamp","ask_amount","ask_price","bid_price","bid_amount"]
[1730732913696,4.1634226,2449.8,2449.7,0.60336534]
[1730732913697,0.0814626,2449.8,2449.7,0.60336534]
[1730732913873,4.08159,2450.1,2449.7,0.60336534]
[1730732914210,4.63179,2449.9,2449.8,0.60336534]
[1730732914370,4.63179,2449.9,2449.1,3.80669454]
[1730732914371,4.08255,2449.5,2449.4,0.37125915]
[1730732914710,4.63255,2449.5,2449.4,0.6032983]
[1730732914864,4.63255,2449.5,2449.4,0.23203915]
[1730732915057,4.7140126,2449.5,2449.4,0.23203915]
[1730732915256,4.08271,2449.4,2449.1,3.80669454]
[1730732915462,4.63255,2449.5,2449.2,0.2319533]
[1730732915698,0.0814626,2449.4,2449.3,0.2319533]
[1730732915901,4.08289,2449.3,2449.1,3.80669454]
[1730732916203,8.16578,2449.3,2449.2,0.23196976]
[1730732916511,4.63296,2449.2,2449.1,0.0604162]
[1730732918063,4.7144226,2449.2,2449.1,0.0604162]
[1730732918401,0.0814626,2449.2,2449.1,0.0604162]
[1730732918577,4.08271,2449.4,2449.1,0.0604162]
[1730732918772,0.03864678,2449.2,2449.1,0.0604162]
[1730732918990,0.0814626,2449.3,2449.2,4.08296]
[1730732919177,4.1637726,2449.6,2449.2,4.08296]
[1730732919380,0.0814626,2449.6,2449.1,0.0604162]
[1730732919602,4.1638626,2449.6,2449.1,4.1434562]
[1730732920109,0.0814626,2449.6,2449.1,0.0604162]
[1730732920295,0.0814626,2449.6,2449.2,4.08287]
[1730732920498,0.0814626,2449.6,2449.1,0.0604162]
[1730732920796,0.0814626,2449.6,2449.2,4.08286]
[1730732920994,0.0814626,2449.6,2449.1,0.0604162]
[1730732921307,0.0814626,2449.6,2449.2,4.08289]
[1730732921512,4.08248,2449.5,2449.1,4.1434962]
[1730732921871,4.1637626,2449.6,2449.1,8.2265262]
[1730732922082,4.1637626,2449.6,2449.2,4.08295]
[1730732922380,0.0814626,2449.6,2449.2,4.08284]
[1730732922587,4.92780913,2449.7,2449.3,0.8087]
[1730732922793,0.84559913,2449.7,2449.3,0.8087]
[1730732923003,0.84559913,2449.7,2449.3,4.8914]
[1730732923178,0.84559913,2449.7,2449.3,0.8087]
[1730732923380,0.84559913,2449.7,2449.4,4.08261]
[1730732923714,5.67780913,2450.2,2449.5,4.08245]
[1730732923920,4.92667913,2450.4,2449.9,4.89036]
[1730732924083,4.1625426,2450.4,2449.9,4.89036]
[1730732924283,4.1624926,2450.4,2449.9,4.89036]
[1730732924511,0.7508,2450.5,2449.9,0.8087]
[1730732924818,1.2683987,2450.7,2450.1,4.08136]
[1730732924819,0.92706173,2450.7,2450.1,4.08136]
[1730732924987,0.0814626,2450.7,2450.0,4.08163]
[1730732925190,4.08027,2450.9,2450.4,4.08087]
[1730732925573,4.1617626,2450.8,2450.4,4.08087]
[1730732925870,4.1617626,2450.8,2450.3,4.08112]
[1730732926071,4.08048,2450.7,2450.2,4.08116]
[1730732926310,4.08081,2450.5,2450.1,4.08135]
[1730732926518,4.08057,2450.7,2450.1,4.08135]
[1730732926688,2.0882987,2451.1,2450.1,4.08135]
[1730732926689,0.84559913,2451.1,2450.3,4.86961]
[1730732926898,0.92706173,2451.2,2450.8,4.08028]
[1730732927081,0.92706173,2451.2,2450.4,4.08087]
[1730732927082,4.08013,2450.9,2450.4,4.08087]
[1730732927279,0.0814626,2450.8,2450.3,0.7885]
[1730732927480,4.08054,2450.7,2450.2,4.3122716]
[1730732927709,4.08054,2450.7,2450.0,4.90191]
[1730732927710,4.1619626,2450.7,2450.0,4.90191]
[1730732928016,4.08074,2450.6,2450.0,4.90191]
[1730732928178,4.1622026,2450.6,2450.0,4.90191]
[1730732928385,0.0814626,2450.6,2450.1,4.08136]
[1730732928596,0.0814626,2450.6,2450.2,4.08127]
[1730732928781,4.1621126,2450.6,2450.1,8.16273]
[1730732929417,0.0814626,2450.6,2450.1,4.08136]
[1730732929641,4.1619626,2450.7,2450.2,4.08127]
[1730732929921,4.1619626,2450.7,2450.1,4.16298046]
[1730732929922,0.0814626,2450.6,2450.1,4.08145]
[1730732930239,4.57835686,2450.6,2450.1,4.08134]
[1730732930390,4.1621626,2450.6,2450.1,4.08134]
[1730732930895,4.08091,2450.5,2450.0,4.90202]
[1730732931148,4.1624426,2450.4,2449.8,4.08184]
[1730732931415,4.1624326,2450.4,2449.8,4.16346848]
[1730732931621,0.0814626,2450.4,2449.9,4.08176]
[1730732931828,0.8182,2450.5,2450.0,4.08146]
[1730732932129,0.0814626,2450.4,2450.0,4.08146]
[1730732932623,0.55,2450.6,2450.2,4.08121]
[1730732933178,0.9098626,2450.8,2450.3,4.08105]
[1730732933692,4.11654142,2450.7,2450.3,4.081]
[1730732934595,0.03606142,2450.7,2450.3,4.081]
[1730732934915,0.9098626,2450.8,2450.3,4.081]
[1730732935115,0.03603709,2450.6,2450.3,4.081]
[1730732935493,0.9098626,2450.8,2450.3,8.16202]
[1730732935678,0.03593081,2450.5,2450.4,4.16254739]
[1730732935882,0.0814626,2451.0,2450.4,4.08093]
[1730732936083,4.1615126,2451.0,2450.5,4.08075]
[1730732936496,4.1615126,2451.0,2450.4,4.08093]
[1730732936497,4.08015,2450.9,2450.4,4.08093]
[1730732936711,4.1618026,2450.8,2450.3,4.91033]
[1730732937029,0.55,2450.7,2450.0,4.08151]
[1730732937242,4.9927026,2450.6,2450.1,4.08146]
[1730732937521,4.0808,2450.5,2450.0,8.16314]
[1730732938081,4.91124,2450.6,2450.1,4.08136]
[1730732938327,4.9927026,2450.6,2450.1,4.08136]
[1730732938524,9.0734726,2450.6,2450.1,4.08136]
[1730732938735,8.99201,2450.6,2450.1,4.08136]
[1730732939026,4.0808,2450.5,2450.0,8.16308]
[1730732939325,4.0808,2450.5,2449.9,4.91097]
[1730732939326,4.1625526,2450.4,2449.9,4.91097]
[1730732939531,4.1624626,2450.4,2449.8,4.08183]
[1730732939822,4.9927026,2450.6,2450.1,8.16282]
[1730732939989,0.8306,2450.6,2450.2,4.08122]
[1730732940191,4.91125,2450.6,2450.1,4.08137]
[1730732940387,4.91125,2450.6,2450.1,8.16275]
[1730732940589,4.9927126,2450.6,2450.1,4.08137]
[1730732940814,4.08089,2450.5,2450.0,4.08161]
[1730732941001,4.9927126,2450.6,2450.0,4.08161]
[1730732941199,0.8306,2450.6,2450.2,4.08129]
[1730732941414,4.91123,2450.6,2450.2,4.08129]
[1730732941729,4.9926926,2450.6,2450.1,4.08139]
[1730732942435,4.87071,2450.9,2450.4,4.08089]
[1730732942601,4.9521726,2450.9,2450.4,4.08089]
[1730732942805,4.08038,2450.8,2450.4,4.08089]
[1730732943130,4.08038,2450.8,2450.2,4.08115]
[1730732943289,4.08103,2450.4,2449.9,4.08178]
[1730732943508,0.7807,2450.4,2449.8,0.7698]
[1730732943835,4.86166,2450.4,2449.9,4.08163]
[1730732944250,0.7807,2450.4,2450.0,4.08154]
[1730732944591,0.0814626,2450.5,2450.1,4.08131]
[1730732944789,0.786,2450.7,2450.5,4.08071]
[1730732945008,4.9475126,2451.0,2450.5,4.08068]
[1730732945210,4.9475126,2451.0,2450.3,0.787]
[1730732945211,0.8674626,2451.0,2450.6,4.08056]
[1730732945507,0.786,2451.0,2450.7,4.08033]
[1730732945709,1.71306173,2451.2,2450.7,4.08033]
[1730732946016,5.00653173,2451.3,2450.9,4.08001]
[1730732946218,5.00653173,2451.3,2450.8,4.08014]
[1730732946219,8.2405126,2451.3,2450.8,4.08014]
[1730732946407,4.07971,2451.2,2450.8,4.08014]
[1730732946607,4.1609626,2451.3,2450.9,4.08006]
[1730732946919,4.07966,2451.2,2450.8,4.08014]
[1730732947349,0.84559913,2451.5,2450.9,0.08159753]
[1730732947645,2.44639827,2451.7,2450.9,0.08159753]
[1730732947646,0.84559913,2451.7,2451.2,4.07948]
[1730732947960,8.15848,2451.5,2451.0,4.07996]
[1730732948163,4.07905,2451.6,2451.1,4.07979]
[1730732948316,4.1606026,2451.5,2451.1,4.07979]
[1730732948510,4.1606026,2451.5,2451.0,4.07996]
[1730732948715,4.1606026,2451.5,2450.8,0.8208]
[1730732948921,4.1606026,2451.5,2451.1,4.07972]
[1730732949263,4.1606026,2451.5,2450.8,0.8208]
[1730732949555,4.1606026,2451.5,2450.6,4.31184192]
[1730732949556,4.07991,2451.1,2450.6,4.31184192]
[1730732949735,0.0814626,2451.0,2450.6,4.08055]
[1730732950145,0.0814626,2451.0,2450.7,0.23142384]
[1730732950631,0.0814626,2451.0,2450.6,4.31202384]
[1730732950840,0.0814626,2451.0,2450.6,4.0806]
[1730732951047,4.1615126,2451.0,2450.6,4.0806]
[1730732951251,4.1615126,2451.0,2450.7,0.23155175]
[1730732951453,4.1615126,2451.0,2450.6,4.0806]
[1730732951633,0.0814626,2451.0,2450.7,0.23153371]
[1730732951832,0.0814626,2451.0,2450.7,0.23154688]
[1730732952051,0.0814626,2451.0,2450.6,8.16107]
[1730732952359,0.0814626,2451.0,2450.7,0.23172852]
[1730732952654,4.08013,2450.9,2450.8,0.23172852]
[1730732952856,4.1614526,2451.0,2450.6,4.31235821]
[1730732953058,0.0814626,2451.0,2450.7,0.23172821]
[1730732953244,4.08013,2450.9,2450.8,0.23172821]
[1730732953457,4.08046,2450.7,2450.2,8.93831]
[1730732953765,4.08046,2450.7,2450.3,0.60292897]
[1730732953766,4.1620126,2450.7,2450.3,0.60292897]
[1730732953971,4.1620126,2450.7,2450.4,0.23188911]
[1730732954126,0.0814626,2450.7,2450.3,4.08112]
[1730732954324,4.1619626,2450.7,2450.5,0.23191142]
[1730732954670,4.1619626,2450.7,2450.2,4.08128]
[1730732954671,5.15037799,2450.7,2450.2,4.08128]
[1730732954824,4.0807,2450.6,2450.3,0.23196676]
[1730732955197,0.0814626,2450.6,2450.4,0.23196676]
[1730732955457,0.0814626,2450.6,2450.2,4.08128]
[1730732955669,4.1621126,2450.6,2450.3,0.23200836]
[1730732955861,4.1621126,2450.6,2450.2,4.45251706]
[1730732956038,4.1621126,2450.6,2450.3,0.23201347]
[1730732956244,4.08079,2450.5,2450.4,0.23200234]
[1730732956427,4.90508026,2450.5,2450.1,4.08144]
[1730732956628,0.8177,2450.9,2450.2,0.23202842]
[1730732956629,4.08039,2450.8,2450.2,0.23202842]
[1730732956968,0.0814626,2450.7,2450.4,4.08086]
[1730732957170,4.1617726,2450.8,2450.3,4.0811]
[1730732957322,4.1617726,2450.8,2450.4,0.23200828]
[1730732957537,4.1617726,2450.8,2450.3,4.0811]
[1730732957981,0.0814626,2450.8,2450.4,4.3128515]
[1730732958282,4.1618226,2450.8,2450.5,0.2320115]
[1730732958483,4.1618226,2450.8,2450.3,4.08104]
[1730732958695,4.0805,2450.7,2450.4,0.2320045]
[1730732958892,4.0805,2450.7,2450.5,0.2320045]
[1730732959190,4.1619626,2450.7,2450.3,8.16208]
[1730732959342,4.0805,2450.7,2450.4,0.23200794]
[1730732959546,4.0805,2450.7,2450.5,0.23200794]
[1730732959849,4.0805,2450.7,2450.3,4.08104]
[1730732960061,4.0805,2450.7,2450.4,0.23201627]
[1730732960261,4.1617726,2450.8,2450.5,0.23200356]
[1730732960555,0.84559913,2451.1,2450.7,4.08039]
[1730732960556,0.0814626,2451.1,2450.7,4.08039]
[1730732960745,4.1612726,2451.1,2450.7,4.08039]
[1730732960946,4.1612726,2451.1,2450.4,4.83582]
[1730732960947,0.0814626,2451.1,2450.4,4.83582]
[1730732961305,0.0814626,2451.1,2450.1,3.0]
[1730732961306,4.08032,2450.8,2450.3,4.08101]
[1730732961509,0.0814626,2450.7,2450.5,0.3712333]
[1730732961800,4.1620226,2450.7,2450.4,0.3712333]
[1730732962006,4.9529226,2450.7,2450.5,0.23203105]
[1730732962188,4.9529226,2450.7,2450.6,0.23203105]
[1730732962707,5.85624786,2450.7,2450.6,0.23203105]
[1730732963160,4.0808,2450.5,2450.2,0.37133743]
[1730732963365,4.1625126,2450.4,2450.3,0.23206349]
[1730732963597,4.1625126,2450.4,2449.9,4.45302328]
[1730732963798,4.1625126,2450.4,2450.0,0.60338457]
[1730732964015,4.08133,2450.2,2450.1,0.23208129]
[1730732964165,4.08174,2450.0,2449.8,0.37134574]
[1730732964367,4.08174,2450.0,2449.3,3.74627834]
[1730732964368,4.08224,2449.7,2449.3,3.74627834]
[1730732964571,4.08255,2449.5,2449.4,0.2320398]
[1730732964963,4.08263,2449.4,2449.3,3.74627834]
[1730732965198,4.63263,2449.4,2449.3,3.74627834]
[1730732965368,4.7140926,2449.4,2449.3,3.74627834]
[1730732965697,4.63263,2449.4,2449.3,3.74627834]
[1730732967711,4.08255,2449.5,2449.3,3.74627834]
[1730732967869,8.16451,2449.7,2449.3,3.74627834]
[1730732968064,4.08225,2449.7,2449.3,3.74627834]
[1730732968265,0.8175,2449.8,2449.3,7.91072091]
[1730732968479,4.08194,2449.9,2449.4,4.08253]
[1730732968681,0.0814626,2449.8,2449.4,4.08253]
[1730732968904,0.0814626,2450.0,2449.3,3.74627834]
[1730732969117,4.08253,2449.5,2449.3,3.74627834]
[1730732969326,4.1640926,2449.4,2449.3,3.74627834]
[1730732969543,4.9513926,2449.4,2449.3,3.74627834]
[1730732969829,4.9513926,2449.4,2449.1,0.0604162]
[1730732969830,4.08296,2449.2,2449.1,0.0604162]
[1730732970014,4.1644226,2449.2,2449.1,0.0604162]
[1730732970190,4.7144226,2449.2,2449.1,0.0604162]
[1730732970390,0.6314626,2449.2,2449.1,0.0604162]
[1730732970628,4.7144226,2449.2,2449.1,0.0604162]
[1730732971031,0.6314626,2449.2,2449.1,0.0604162]
[1730732971396,0.0814626,2449.2,2449.1,0.0604162]
[1730732971597,0.01,2449.7,2449.1,4.1434662]
[1730732971598,4.08237,2449.6,2449.1,4.1434662]
[1730732971830,4.1639426,2449.5,2449.1,4.1434662]
[1730732972329,0.0814626,2449.5,2449.1,8.2265162]
[1730732972653,4.08296,2449.2,2449.1,0.0604162]
[1730732973335,4.63296,2449.2,2449.1,0.0604162]
[1730732973843,6.28366526,2449.2,2449.1,0.0604162]
[1730732974439,6.36512786,2449.2,2449.1,0.0604162]
[1730732977267,6.37952786,2449.2,2449.1,0.0604162]
[1730732977452,6.38952786,2449.2,2449.1,0.0604162]
[1730732978026,6.37952786,2449.2,2449.1,0.0604162]
[1730732978456,5.4998226,2449.2,2449.1,0.0604162]
[1730732993937,4.1644226,2449.2,2449.1,0.0604162]
[1730732994439,4.1644226,2449.2,2449.1,0.29238387]
[1730732995246,4.7144226,2449.2,2449.1,0.29238387]
[1730732995447,4.08282,2449.3,2449.1,0.66388441]
[1730732995658,4.08282,2449.3,2449.1,0.0604162]
[1730732995659,4.1644226,2449.2,2449.1,0.0604162]
[1730732995805,4.08265,2449.4,2449.1,1.44072851]
[1730732996009,4.08265,2449.4,2449.2,0.23219012]
[1730732996234,4.08265,2449.4,2449.1,0.8370162]
[1730732996235,4.08265,2449.4,2449.3,0.23219012]
[1730732996436,0.0814626,2449.6,2449.3,0.23219012]
[1730732996740,4.08243,2449.6,2449.4,0.60372681]
[1730732996948,4.1639226,2449.5,2449.1,0.8370162]
[1730732997131,4.08246,2449.5,2449.2,0.60372595]
[1730732997324,4.08246,2449.5,2449.3,0.60372595]
[1730732997519,4.1637826,2449.6,2449.4,0.60370962]
[1730732997827,4.1637826,2449.6,2449.2,4.08296]
[1730732997828,4.08222,2449.7,2449.5,0.6036651]
[1730732998030,4.08188,2449.9,2449.6,1.3583634]
[1730732998031,0.0814626,2449.8,2449.6,1.3583634]
[1730732998234,4.0815,2450.1,2449.7,0.6036634]
[1730732998417,0.0814626,2450.0,2449.8,0.23219537]
[1730732998616,4.08179,2449.9,2449.6,0.7547]
[1730732998813,4.08196,2449.8,2449.7,0.23211349]
[1730732999454,4.08235,2449.6,2449.3,0.7547]
[1730732999680,4.1638126,2449.6,2449.3,0.7547]
[1730732999881,4.08247,2449.5,2449.4,0.60353328]
[1730733000045,0.0814626,2449.5,2449.4,0.60355237]
[1730733000256,4.1639226,2449.5,2449.4,0.60355237]
[1730733000454,5.53854986,2449.5,2449.4,0.23212861]
[1730733000797,5.53854986,2449.5,2449.1,0.0604162]
[1730733000798,4.63296,2449.2,2449.1,0.0604162]
[1730733000931,4.63296,2449.2,2449.1,0.29256861]
[1730733000932,5.4912226,2449.2,2449.1,0.29256861]
[1730733001272,4.7144226,2449.2,2449.1,0.29256861]
[1730733001844,4.1642626,2449.3,2449.1,0.29256861]
[1730733002051,0.0814626,2449.3,2449.2,0.23215241]
[1730733002357,4.1642626,2449.3,2449.1,0.0604162]
[1730733002554,4.1642626,2449.3,2449.2,0.2322086]
[1730733002753,8.16552,2449.4,2449.2,0.60376068]
[1730733002949,4.63274,2449.4,2449.3,0.2322086]
[1730733003167,4.0825,2449.5,2449.3,0.2322086]
[1730733003373,4.6325,2449.5,2449.4,0.2322086]
[1730733004637,4.08296,2449.2,2449.1,0.0604162]
[1730733004978,4.08296,2449.2,2449.1,0.29263198]
[1730733004979,4.63296,2449.2,2449.1,0.29263198]
[1730733005173,4.7144226,2449.2,2449.1,0.29263198]
[1730733006534,4.7144226,2449.2,2449.1,0.0604162]
[1730733006957,4.0828,2449.3,2449.1,0.2926381]
[1730733007263,4.0828,2449.3,2449.2,0.2322219]
[1730733007437,0.0814626,2449.4,2449.2,0.2322219]
[1730733007643,4.08275,2449.4,2449.3,0.23219686]
[1730733007854,0.0814626,2449.4,2449.3,0.23219686]
[1730733008167,4.08256,2449.5,2449.3,0.23221198]
[1730733008460,4.08256,2449.5,2449.2,0.8309]
[1730733008668,4.08256,2449.5,2449.1,0.0604162]
[1730733008669,4.08296,2449.2,2449.1,0.0604162]
[1730733008958,4.57994226,2449.5,2449.1,0.29264809]
[1730733009159,4.1641026,2449.4,2449.2,0.23223189]
[1730733009366,4.1641026,2449.4,2449.1,0.0604162]
[1730733009566,4.1641026,2449.4,2449.2,0.23221801]
[1730733009750,4.1641026,2449.4,2449.1,0.0604162]
[1730733009951,4.1639426,2449.5,2449.1,0.0604162]
[1730733010332,0.0814626,2449.5,2449.2,0.23220849]
[1730733010575,1.2683987,2449.8,2449.6,4.08215]
[1730733010875,7.25830187,2450.3,2449.8,0.7647]
[1730733010876,5.3498687,2450.1,2449.8,0.7647]
[1730733011074,1.3498613,2450.2,2449.8,0.7647]
[1730733011371,4.08144,2450.2,2449.8,0.7647]
[1730733011578,0.0814626,2450.2,2449.8,0.7647]
[1730733011733,4.08209,2449.8,2449.5,0.8319]
[1730733011929,4.08179,2449.9,2449.6,0.2320505]
[1730733012168,4.08179,2449.9,2449.5,0.8319]
[1730733012372,4.08179,2449.9,2449.6,0.23200007]
[1730733012665,4.0816,2450.1,2449.6,0.23200007]
[1730733012666,8.16316,2450.1,2449.7,0.23198338]
[1730733012899,4.08229,2449.6,2449.5,0.8319]
[1730733013049,4.08259,2449.5,2449.2,0.7867]
[1730733013257,4.08296,2449.2,2449.1,0.0604162]
[1730733013589,4.1644226,2449.2,2449.1,0.0604162]
[1730733013734,5.4328213,2449.2,2449.1,0.0604162]
[1730733013935,6.63446226,2449.2,2449.1,0.0604162]
[1730733014162,7.60726183,2449.2,2449.1,0.0604162]
[1730733014581,11.0307655,2449.2,2449.1,0.0604162]
[1730733014737,10.9493029,2449.2,2449.1,0.0604162]
[1730733016489,6.32484636,2449.2,2449.1,0.0604162]
[1730733016637,5.98335594,2449.2,2449.1,0.0604162]
[1730733016836,4.7144226,2449.2,2449.1,0.0604162]
[1730733017040,6.40633899,2449.2,2449.1,0.0604162]
[1730733017280,6.82917142,2449.2,2449.1,0.0604162]
[1730733017476,7.57842824,2449.2,2449.1,0.0604162]
[1730733017679,8.00132756,2449.2,2449.1,0.0604162]
[1730733018095,11.00132756,2449.2,2449.1,0.0604162]
[1730733018299,10.91985932,2449.2,2449.1,0.0604162]
[1730733018658,8.80511614,2449.2,2449.1,0.0604162]
[1730733018854,10.91985932,2449.2,2449.1,0.0604162]
[1730733019085,8.80511614,2449.2,2449.1,0.0604162]
[1730733019292,10.91985932,2449.2,2449.1,0.0604162]
[1730733021195,15.53754351,2449.2,2449.1,0.0604162]
[1730733021426,14.24320033,2449.2,2449.1,0.0604162]
[1730733022206,9.62551614,2449.2,2449.1,0.0604162]
[1730733023398,12.16321473,2449.2,2449.1,0.0604162]
[1730733023570,9.62551614,2449.2,2449.1,0.0604162]
[1730733024805,11.74150151,2449.2,2449.1,0.0604162]
[1730733025506,11.74172792,2449.2,2449.1,0.0604162]
[1730733025704,9.62551614,2449.2,2449.1,0.0604162]
[1730733026262,11.74175082,2449.2,2449.1,0.0604162]
[1730733026544,9.62551614,2449.2,2449.1,0.0604162]
[1730733026805,16.78279088,2449.2,2449.1,0.0604162]
[1730733027109,4.0847,2448.2,2448.0,1.03583227]
[1730733027410,4.0847,2448.2,2448.0,0.804]
[1730733027563,4.08444,2448.4,2448.0,0.804]
[1730733027766,4.1657026,2448.5,2448.0,5.12062033]
[1730733027965,4.1657026,2448.5,2448.0,4.88882]
[1730733028205,4.08424,2448.5,2448.2,0.8178]
[1730733028913,4.08398,2448.6,2448.2,4.90243]
[1730733029212,4.08398,2448.6,2448.2,0.8178]
[1730733029213,4.084,2448.6,2448.2,0.8178]
[1730733029608,4.1656726,2448.5,2448.2,0.8178]
[1730733029818,4.08421,2448.5,2448.2,0.8178]
[1730733030306,4.0843,2448.4,2448.2,0.8178]
[1730733030516,4.08446,2448.3,2448.2,0.8178]
[1730733030715,4.08472,2448.2,2448.0,1.06372294]
[1730733031009,4.1662626,2448.1,2448.0,0.8319]
[1730733031208,4.1662626,2448.1,2447.9,0.0604162]
[1730733031209,4.08496,2448.0,2447.9,0.0604162]
[1730733031920,4.15653061,2448.0,2447.9,0.0604162]
[1730733032486,4.78799321,2448.0,2447.9,0.0604162]
[1730733032687,5.71693436,2448.0,2447.9,0.0604162]
[1730733033843,6.47463436,2448.0,2447.9,0.0604162]
[1730733037241,9.47463436,2448.0,2447.9,0.0604162]
[1730733037454,9.39317176,2448.0,2447.9,6.2e-06]
[1730733037600,14.99794708,2448.0,2447.9,6.2e-06]
[1730733037803,14.99794708,2448.0,2447.1,0.5]
[1730733037804,4.0863,2447.2,2447.1,0.5]
[1730733038053,5.6133896,2447.2,2447.1,0.5]
[1730733038203,5.68426389,2447.2,2447.1,0.5]
[1730733039254,4.23863689,2447.2,2447.1,0.5]
[1730733039398,4.78863689,2447.2,2447.1,0.5]
[1730733040627,0.62087429,2447.2,2447.1,0.5]
[1730733040827,4.78863689,2447.2,2447.1,0.5]
[1730733041157,0.70233689,2447.2,2447.1,0.5]
[1730733041357,4.78863689,2447.2,2447.1,0.5]
[1730733042221,5.67611758,2447.2,2447.1,0.5]
[1730733042946,4.78863689,2447.2,2447.1,0.5]
[1730733043261,4.70717429,2447.2,2447.1,0.5]
[1730733043925,0.70233689,2447.2,2447.1,0.5]
[1730733044126,0.62087429,2447.2,2447.1,0.5]
[1730733044434,0.07087429,2447.2,2447.1,1.3257]
[1730733044638,4.15717429,2447.2,2447.1,1.3257]
[1730733044842,4.08617,2447.3,2447.1,1.3257]
[1730733045052,0.07061344,2447.2,2447.1,1.3257]
[1730733045432,4.08617,2447.3,2447.1,1.3257]
[1730733045731,0.07062587,2447.2,2447.1,1.3257]
[1730733045932,4.08563,2447.6,2447.1,1.3257]
[1730733046238,4.08598,2447.4,2447.1,1.3257]
[1730733046647,0.06823215,2447.3,2447.1,1.3257]
[1730733046858,4.0863,2447.2,2447.1,1.3257]
[1730733047247,4.15448783,2447.2,2447.1,1.3257]
[1730733047572,0.06818783,2447.2,2447.1,1.3257]
[1730733047926,4.1676026,2447.3,2447.1,1.3257]
[1730733048174,0.06824031,2447.2,2447.1,1.3257]
[1730733048538,4.1676226,2447.3,2447.1,1.3257]
[1730733048734,0.06824031,2447.2,2447.1,1.3257]
[1730733048940,4.1676226,2447.3,2447.1,1.3257]
[1730733049161,0.06824031,2447.2,2447.1,1.3257]
[1730733049575,4.08589,2447.5,2447.1,1.3257]
[1730733049576,4.1673326,2447.5,2447.1,1.3257]
[1730733049745,0.06824031,2447.2,2447.1,1.3257]
[1730733049949,0.0814626,2447.5,2447.1,5.41216]
[1730733050168,0.06834656,2447.4,2447.1,1.3257]
[1730733050679,4.15437656,2447.4,2447.1,1.3257]
[1730733050832,4.1676826,2447.3,2447.1,1.3257]
[1730733051266,0.06825428,2447.2,2447.1,1.3257]
[1730733051675,4.1674926,2447.4,2447.1,1.3257]
[1730733051830,0.06832033,2447.2,2447.1,1.3257]
[1730733052035,0.0814626,2447.3,2447.1,1.3257]
[1730733052263,0.06832033,2447.2,2447.1,1.3257]
[1730733052935,4.0863,2447.2,2447.1,0.5]
[1730733053161,0.06857259,2447.2,2447.1,0.5]
[1730733053638,0.0814626,2447.3,2447.1,0.5]
[1730733053876,0.06857259,2447.2,2447.1,0.5]
[1730733054283,4.1676026,2447.3,2447.1,0.5]
[1730733054580,0.06856035,2447.2,2447.1,0.5]
[1730733055058,4.1676026,2447.3,2447.1,0.5]
[1730733055261,0.06856035,2447.2,2447.1,0.5]
[1730733055692,0.0814626,2447.3,2447.1,0.5]
[1730733055903,0.06856035,2447.2,2447.1,0.5]
[1730733056612,0.0814626,2447.3,2447.1,0.5]
[1730733056758,0.06856035,2447.2,2447.1,0.5]
[1730733056953,4.0863,2447.2,2447.1,0.73205509]
[1730733057294,0.06856035,2447.2,2447.1,0.73205509]
[1730733057494,0.06856035,2447.2,2447.1,0.73212723]
[1730733057706,0.0814626,2447.3,2447.1,0.73212723]
[1730733057867,0.06854638,2447.2,2447.1,0.5]
[1730733058059,5.49234638,2447.2,2447.1,0.73212547]
[1730733058265,6.3897979,2447.2,2447.1,0.5]
[1730733058496,5.75238953,2447.2,2447.1,0.5]
[1730733061260,5.75238953,2447.2,2447.1,0.7326171]
[1730733061456,5.75238953,2447.2,2447.1,0.5]
[1730733061700,5.75238953,2447.2,2447.1,0.73261024]
[1730733061905,0.15009163,2447.2,2447.1,0.73261024]
[1730733063307,4.23639163,2447.2,2447.1,0.73261024]
[1730733063519,4.78639163,2447.2,2447.1,0.73261024]
[1730733065689,0.06862903,2447.2,2447.1,6.0146874]
[1730733066023,4.08622,2447.3,2447.1,1.9282274]
[1730733066317,4.1524801,2447.2,2447.1,0.5]
[1730733066623,4.1524801,2447.2,2447.1,1.10563104]
[1730733067211,4.2339427,2447.2,2447.1,1.10563104]
[1730733067554,4.7839427,2447.2,2447.1,1.10563104]
[1730733068548,0.1476427,2447.2,2447.1,1.10563104]
[1730733068868,0.0661801,2447.2,2447.1,1.10563104]
[1730733069161,0.0814626,2447.3,2447.1,1.10563104]
[1730733069308,0.06628291,2447.2,2447.1,1.10563104]
[1730733069509,0.06628291,2447.2,2447.1,1.10578598]
[1730733069718,4.1675926,2447.3,2447.1,1.10578598]
[1730733069922,0.06620027,2447.2,2447.1,0.5]
[1730733070148,0.06620027,2447.2,2447.1,1.10578257]
[1730733070343,0.0814626,2447.3,2447.1,1.10578257]
[1730733070544,0.0814626,2447.3,2447.2,0.60578257]
[1730733070947,0.0814626,2447.3,2447.2,0.60576726]
[1730733071257,4.1675926,2447.3,2447.2,0.60576726]
[1730733071809,0.0814626,2447.3,2447.2,0.60576726]
[1730733072465,4.086,2447.4,2447.2,0.60576726]
[1730733072760,0.0814626,2447.5,2447.3,0.23297865]
[1730733072909,4.08547,2447.7,2447.4,0.23297865]
[1730733073110,1.26550346,2448.2,2447.7,4.08536]
[1730733073320,1.68733795,2448.3,2447.8,4.08521]
[1730733073321,5.43149606,2448.3,2447.8,4.08521]
[1730733073610,4.08465,2448.2,2447.9,0.23288038]
[1730733073951,0.0814626,2448.1,2447.6,0.7803]
[1730733074159,0.0814626,2448.3,2447.7,0.60550037]
[1730733074308,1.26550346,2448.5,2448.2,4.91431]
[1730733074623,1.68733795,2448.7,2448.2,4.91431]
[1730733074624,1.34696606,2448.7,2448.3,4.08445]
[1730733074825,4.1653626,2448.7,2448.3,4.08445]
[1730733075030,4.1653626,2448.7,2448.4,0.23265896]
[1730733075231,0.0814626,2448.7,2448.2,0.8297]
[1730733075467,5.34874346,2449.1,2448.6,0.7908]
[1730733075761,5.34833346,2449.3,2448.7,4.0837]
[1730733075959,4.1644226,2449.2,2448.7,4.0837]
[1730733076119,4.08339,2449.0,2448.8,0.23232694]
[1730733076462,4.08339,2449.0,2448.6,1.1625468]
[1730733076463,4.1650226,2448.9,2448.6,0.7908]
[1730733076629,8.1668,2449.0,2448.6,0.7908]
[1730733076957,4.08365,2448.8,2448.6,0.7908]
[1730733077163,4.08365,2448.8,2448.4,1.01696812]
[1730733077459,4.08339,2449.0,2448.5,4.08411]
[1730733077617,0.95353537,2449.0,2448.4,0.785]
[1730733077819,4.08389,2448.7,2448.4,0.785]
[1730733078016,4.08377,2448.8,2448.4,0.785]
[1730733078244,4.08381,2448.7,2448.4,0.785]